[Event "Titled Tuesday Blitz February 14 Early 2023"]
[White "Goltsev, Dmitry"]
[Black "Sarkar, Justin"]
[WhiteFideId "24176710"]
[BlackFideId "2010011"]
[WhiteElo "2269"]
[BlackElo "2309"]
[Result "0-1"]
[Round "01"]
[TimeControl "180+2"]
[Date "2023.02.15"]
[WhiteClock "0:01:28"]
[BlackClock "0:00:17"]

1. e4 {[%clk 0:03:00]}  e5 {[%clk 0:02:54]} 2. Nf3 {[%clk 0:03:00]}  Nc6 {[%clk 0:02:53]} 3. Bb5 {[%clk 0:03:00]}  Nf6 {[%clk 0:02:52]} 4. O-O {[%clk 0:03:00]}  Nxe4 {[%clk 0:02:52]} 5. d4 {[%clk 0:03:00]}  a6 {[%clk 0:02:52]} 6. Ba4 {[%clk 0:02:57]}  b5 {[%clk 0:02:50]} 7. Bb3 {[%clk 0:02:56]}  d5 {[%clk 0:02:49]} 8. dxe5 {[%clk 0:02:56]}  Be6 {[%clk 0:02:48]} 9. Be3 {[%clk 0:02:56]}  Be7 {[%clk 0:02:39]} 10. c3 {[%clk 0:02:56]}  Nc5 {[%clk 0:02:35]} 11. Bc2 {[%clk 0:02:55]}  Nd7 {[%clk 0:02:33]} 12. Bf4 {[%clk 0:02:53]}  O-O {[%clk 0:02:22]} 13. Qd3 {[%clk 0:02:51]}  g6 {[%clk 0:02:20]} 14. Qe2 {[%clk 0:02:51]}  Bg4 {[%clk 0:02:04]} 15. Nbd2 {[%clk 0:02:47]}  Re8 {[%clk 0:01:54]} 16. h3 {[%clk 0:02:46]}  Bxf3 {[%clk 0:01:48]} 17. Nxf3 {[%clk 0:02:47]}  Bf6 {[%clk 0:01:27]} 18. Rad1 {[%clk 0:02:29]}  Ndxe5 {[%clk 0:01:24]} 19. Nxe5 {[%clk 0:02:29]}  Nxe5 {[%clk 0:01:22]} 20. b3 {[%clk 0:02:24]}  c6 {[%clk 0:01:16]} 21. Qd2 {[%clk 0:02:19]}  Qb6 {[%clk 0:01:12]} 22. Be3 {[%clk 0:02:14]}  Qb7 {[%clk 0:01:08]} 23. Kh1 {[%clk 0:02:09]}  Rad8 {[%clk 0:01:05]} 24. Qd4 {[%clk 0:02:06]}  Qe7 {[%clk 0:00:55]} 25. Qb6 {[%clk 0:02:01]}  Rb8 {[%clk 0:00:44]} 26. Qxb5 {[%clk 0:01:54]}  axb5 {[%clk 0:00:43]} 27. Rfe1 {[%clk 0:01:42]}  Qd7 {[%clk 0:00:33]} 28. Bc5 {[%clk 0:01:40]}  Qc7 {[%clk 0:00:29]} 29. Ra1 {[%clk 0:01:37]}  Nd7 {[%clk 0:00:28]} 30. Bb4 {[%clk 0:01:34]}  Rxe1+ {[%clk 0:00:22]} 31. Rxe1 {[%clk 0:01:34]}  c5 {[%clk 0:00:22]} 32. Ba3 {[%clk 0:01:34]}  Bxc3 {[%clk 0:00:22]} 33. Re2 {[%clk 0:01:32]}  b4 {[%clk 0:00:22]} 34. Bc1 {[%clk 0:01:32]}  Nf6 {[%clk 0:00:22]} 35. Bh6 {[%clk 0:01:31]}  Re8 {[%clk 0:00:21]} 36. Be3 {[%clk 0:01:27]}  d4 {[%clk 0:00:20]} 37. Bd3 {[%clk 0:01:28]}  dxe3 {[%clk 0:00:20]} 38. fxe3 {[%clk 0:01:28]}  Nh5 {[%clk 0:00:19]} 39. Kg1 {[%clk 0:01:27]}  Ng3 {[%clk 0:00:19]} 40. Rf2 {[%clk 0:01:27]}  Rxe3 {[%clk 0:00:19]} 41. Bc4 {[%clk 0:01:28]}  Re1+ {[%clk 0:00:19]} 42. Kh2 {[%clk 0:01:27]}  Nf1+ {[%clk 0:00:18]} 43. Kg1 {[%clk 0:01:28]}  Qh2# {[%clk 0:00:17]} 0-1


[Site "https://www.chess.com"]

[Event "Titled Tuesday Blitz February 14 Early 2023"]
[White "Ozen, Bahadir"]
[Black "Kejna, Piotr"]
[WhiteFideId "6337058"]
[BlackFideId "21821704"]
[WhiteElo "2369"]
[BlackElo "2027"]
[Result "1-0"]
[Round "01"]
[TimeControl "180+2"]
[Date "2023.02.15"]
[WhiteClock "0:01:04"]
[BlackClock "0:00:39"]

1. g3 {[%clk 0:03:00]}  Nf6 {[%clk 0:02:59]} 2. Bg2 {[%clk 0:02:59]}  g6 {[%clk 0:02:59]} 3. d4 {[%clk 0:02:59]}  Bg7 {[%clk 0:02:59]} 4. e4 {[%clk 0:02:58]}  d6 {[%clk 0:02:59]} 5. Nc3 {[%clk 0:02:57]}  O-O {[%clk 0:02:59]} 6. Nge2 {[%clk 0:02:58]}  c6 {[%clk 0:02:59]} 7. a4 {[%clk 0:02:57]}  Nbd7 {[%clk 0:02:57]} 8. O-O {[%clk 0:02:57]}  e5 {[%clk 0:02:56]} 9. h3 {[%clk 0:02:57]}  Ne8 {[%clk 0:02:54]} 10. a5 {[%clk 0:02:30]}  a6 {[%clk 0:02:47]} 11. b3 {[%clk 0:02:23]}  f5 {[%clk 0:02:22]} 12. dxe5 {[%clk 0:02:23]}  Nxe5 {[%clk 0:02:09]} 13. f4 {[%clk 0:02:20]}  Nf7 {[%clk 0:02:06]} 14. exf5 {[%clk 0:01:49]}  Bxf5 {[%clk 0:02:07]} 15. Be3 {[%clk 0:01:49]}  Nc7 {[%clk 0:01:47]} 16. g4 {[%clk 0:01:45]}  Bd7 {[%clk 0:01:36]} 17. Bb6 {[%clk 0:01:37]}  Qc8 {[%clk 0:01:36]} 18. Qd2 {[%clk 0:01:28]}  d5 {[%clk 0:01:30]} 19. Rae1 {[%clk 0:01:25]}  Re8 {[%clk 0:01:09]} 20. Na4 {[%clk 0:01:22]}  Nb5 {[%clk 0:01:00]} 21. Kh1 {[%clk 0:01:16]}  Nbd6 {[%clk 0:00:47]} 22. Nc5 {[%clk 0:01:14]}  Re7 {[%clk 0:00:40]} 23. Ng3 {[%clk 0:01:06]}  Qf8 {[%clk 0:00:39]} 24. Rxe7 {[%clk 0:01:04]}  Qxe7 {[%clk 0:00:39]} 25. Re1 {[%clk 0:01:05]}  Qf8 {[%clk 0:00:39]} 26. Nxd7 {[%clk 0:01:04]} 1-0


[Site "https://www.chess.com"]

[Event "Titled Tuesday Blitz February 14 Early 2023"]
[White "Bon, Michael"]
[Black "Pulpan, Jakub"]
[WhiteFideId "620696"]
[BlackFideId "302759"]
[WhiteElo "2394"]
[BlackElo "2427"]
[Result "1/2-1/2"]
[Round "01"]
[TimeControl "180+2"]
[Date "2023.02.15"]
[WhiteClock "0:00:07"]
[BlackClock "0:01:53"]

1. e4 {[%clk 0:03:00]}  e6 {[%clk 0:02:53]} 2. d4 {[%clk 0:03:00]}  d5 {[%clk 0:02:54]} 3. e5 {[%clk 0:03:01]}  b6 {[%clk 0:02:53]} 4. Nf3 {[%clk 0:02:57]}  Ba6 {[%clk 0:02:53]} 5. Bxa6 {[%clk 0:02:56]}  Nxa6 {[%clk 0:02:54]} 6. c4 {[%clk 0:02:56]}  Qd7 {[%clk 0:02:53]} 7. cxd5 {[%clk 0:02:54]}  exd5 {[%clk 0:02:53]} 8. Nc3 {[%clk 0:02:51]}  Ne7 {[%clk 0:02:53]} 9. O-O {[%clk 0:02:49]}  Nf5 {[%clk 0:02:53]} 10. e6 {[%clk 0:02:39]}  fxe6 {[%clk 0:02:47]} 11. Ne5 {[%clk 0:02:38]}  Qc8 {[%clk 0:02:48]} 12. Qh5+ {[%clk 0:01:48]}  g6 {[%clk 0:02:43]} 13. Nxg6 {[%clk 0:01:47]}  hxg6 {[%clk 0:02:44]} 14. Qxh8 {[%clk 0:01:41]}  Qd7 {[%clk 0:02:38]} 15. Bg5 {[%clk 0:01:36]}  Qg7 {[%clk 0:02:32]} 16. Qh3 {[%clk 0:01:21]}  Kd7 {[%clk 0:02:22]} 17. Rfe1 {[%clk 0:01:07]}  Re8 {[%clk 0:02:19]} 18. Rac1 {[%clk 0:00:49]}  Qxd4 {[%clk 0:02:12]} 19. Nb5 {[%clk 0:00:30]}  Qb4 {[%clk 0:02:07]} 20. Nxa7 {[%clk 0:00:25]}  Nc5 {[%clk 0:02:03]} 21. Qh7+ {[%clk 0:00:17]}  Be7 {[%clk 0:02:01]} 22. Bxe7 {[%clk 0:00:12]}  Rxe7 {[%clk 0:02:02]} 23. Qxg6 {[%clk 0:00:12]}  Nd3 {[%clk 0:01:55]} 24. Red1 {[%clk 0:00:05]}  Nxc1 {[%clk 0:01:54]} 25. Rxd5+ {[%clk 0:00:05]}  exd5 {[%clk 0:01:52]} 26. Qc6+ {[%clk 0:00:05]}  Kd8 {[%clk 0:01:51]} 27. Qa8+ {[%clk 0:00:05]}  Kd7 {[%clk 0:01:52]} 28. Qc6+ {[%clk 0:00:06]}  Kd8 {[%clk 0:01:52]} 29. Qa8+ {[%clk 0:00:07]}  Kd7 {[%clk 0:01:53]} 30. Qc6+ {[%clk 0:00:07]} 1/2-1/2


[Site "https://www.chess.com"]

[Event "Titled Tuesday Blitz February 14 Early 2023"]
[White "Lorenzo De La Riva, Lazaro"]
[Black "Bashirli, Nail"]
[WhiteFideId "2268809"]
[BlackFideId "13406809"]
[WhiteElo "2404"]
[BlackElo "2326"]
[Result "0-1"]
[Round "01"]
[TimeControl "180+2"]
[Date "2023.02.15"]
[WhiteClock "0:00:37"]
[BlackClock "0:01:49"]

1. e4 {[%clk 0:02:59]}  Nf6 {[%clk 0:02:53]} 2. e5 {[%clk 0:02:58]}  Nd5 {[%clk 0:02:45]} 3. d4 {[%clk 0:02:50]}  d6 {[%clk 0:02:45]} 4. Nf3 {[%clk 0:02:47]}  Nb6 {[%clk 0:02:45]} 5. Be2 {[%clk 0:02:41]}  g6 {[%clk 0:02:45]} 6. exd6 {[%clk 0:02:33]}  cxd6 {[%clk 0:02:44]} 7. a4 {[%clk 0:02:31]}  Bg7 {[%clk 0:02:42]} 8. a5 {[%clk 0:02:30]}  N6d7 {[%clk 0:02:41]} 9. O-O {[%clk 0:02:22]}  O-O {[%clk 0:02:39]} 10. h3 {[%clk 0:02:13]}  Nf6 {[%clk 0:02:35]} 11. Bf4 {[%clk 0:02:06]}  Nc6 {[%clk 0:02:34]} 12. d5 {[%clk 0:01:50]}  Nxa5 {[%clk 0:02:14]} 13. b4 {[%clk 0:01:33]}  Nh5 {[%clk 0:02:14]} 14. Bd2 {[%clk 0:01:16]}  Bxa1 {[%clk 0:02:12]} 15. bxa5 {[%clk 0:01:17]}  Bg7 {[%clk 0:02:10]} 16. g4 {[%clk 0:01:16]}  Nf6 {[%clk 0:02:10]} 17. Nc3 {[%clk 0:01:15]}  Bd7 {[%clk 0:02:10]} 18. Nh2 {[%clk 0:01:01]}  Rc8 {[%clk 0:02:09]} 19. f4 {[%clk 0:00:57]}  Qxa5 {[%clk 0:02:06]} 20. g5 {[%clk 0:00:40]}  Nxd5 {[%clk 0:01:52]} 21. Ne4 {[%clk 0:00:40]}  Qb6+ {[%clk 0:01:49]} 22. Kh1 {[%clk 0:00:39]}  Bc6 {[%clk 0:01:50]} 23. Bf3 {[%clk 0:00:38]}  Ne3 {[%clk 0:01:49]} 24. Bxe3 {[%clk 0:00:37]}  Qxe3 {[%clk 0:01:50]} 25. Re1 {[%clk 0:00:37]}  Qxf4 {[%clk 0:01:49]} 0-1


[Site "https://www.chess.com"]

[Event "Titled Tuesday Blitz February 14 Early 2023"]
[White "EREBUNI91"]
[Black "Ansh M Shah"]
[BlackFideId "25033379"]
[WhiteElo "2719"]
[BlackElo "2171"]
[Result "1-0"]
[Round "01"]
[TimeControl "180+2"]
[Date "2023.02.15"]
[WhiteClock "0:00:24"]
[BlackClock "0:00:05"]

1. e4 {[%clk 0:03:00]}  c6 {[%clk 0:02:57]} 2. d4 {[%clk 0:03:00]}  d5 {[%clk 0:02:58]} 3. e5 {[%clk 0:03:01]}  Bf5 {[%clk 0:02:56]} 4. h4 {[%clk 0:03:01]}  h5 {[%clk 0:02:54]} 5. Bd3 {[%clk 0:03:01]}  Bxd3 {[%clk 0:02:52]} 6. Qxd3 {[%clk 0:03:02]}  Qa5+ {[%clk 0:02:53]} 7. Nd2 {[%clk 0:03:01]}  e6 {[%clk 0:02:53]} 8. Nf3 {[%clk 0:03:00]}  Nh6 {[%clk 0:02:53]} 9. c4 {[%clk 0:02:58]}  Nf5 {[%clk 0:02:51]} 10. O-O {[%clk 0:02:58]}  Qa6 {[%clk 0:02:49]} 11. b3 {[%clk 0:02:50]}  Be7 {[%clk 0:02:49]} 12. a4 {[%clk 0:02:47]}  Nxh4 {[%clk 0:02:36]} 13. Nxh4 {[%clk 0:02:33]}  Bxh4 {[%clk 0:02:37]} 14. Ba3 {[%clk 0:02:33]}  Nd7 {[%clk 0:02:34]} 15. f4 {[%clk 0:02:26]}  g6 {[%clk 0:02:32]} 16. b4 {[%clk 0:02:21]}  Qxa4 {[%clk 0:02:09]} 17. b5 {[%clk 0:02:21]}  Nb6 {[%clk 0:01:05]} 18. Be7 {[%clk 0:01:50]}  dxc4 {[%clk 0:01:03]} 19. Qc3 {[%clk 0:01:44]}  Nd5 {[%clk 0:00:36]} 20. Qc1 {[%clk 0:01:39]}  Qxa1 {[%clk 0:00:15]} 21. Qxa1 {[%clk 0:01:37]}  Bxe7 {[%clk 0:00:16]} 22. bxc6 {[%clk 0:01:37]}  bxc6 {[%clk 0:00:16]} 23. Nxc4 {[%clk 0:01:37]}  O-O {[%clk 0:00:16]} 24. Qa6 {[%clk 0:01:34]}  c5 {[%clk 0:00:16]} 25. dxc5 {[%clk 0:01:18]}  Bxc5+ {[%clk 0:00:17]} 26. Kh2 {[%clk 0:01:18]}  Nb6 {[%clk 0:00:15]} 27. Nd6 {[%clk 0:01:16]}  Nd5 {[%clk 0:00:14]} 28. Ne4 {[%clk 0:01:14]}  Be7 {[%clk 0:00:14]} 29. Rf3 {[%clk 0:00:56]}  Rfc8 {[%clk 0:00:13]} 30. Nd6 {[%clk 0:00:50]}  Bxd6 {[%clk 0:00:11]} 31. exd6 {[%clk 0:00:51]}  Rd8 {[%clk 0:00:12]} 32. f5 {[%clk 0:00:42]}  exf5 {[%clk 0:00:11]} 33. Rd3 {[%clk 0:00:41]}  Nf4 {[%clk 0:00:10]} 34. Rd2 {[%clk 0:00:40]}  Rd7 {[%clk 0:00:08]} 35. Qa4 {[%clk 0:00:38]}  Rad8 {[%clk 0:00:08]} 36. Qxf4 {[%clk 0:00:38]}  Kg7 {[%clk 0:00:08]} 37. Qe5+ {[%clk 0:00:38]}  Kh6 {[%clk 0:00:08]} 38. Kg3 {[%clk 0:00:36]}  Kh7 {[%clk 0:00:07]} 39. Qf6 {[%clk 0:00:36]}  Kg8 {[%clk 0:00:06]} 40. Kh4 {[%clk 0:00:36]}  Kh7 {[%clk 0:00:06]} 41. Kg5 {[%clk 0:00:36]}  a5 {[%clk 0:00:05]} 42. Rd5 {[%clk 0:00:33]}  a4 {[%clk 0:00:05]} 43. Re5 {[%clk 0:00:25]}  Rxd6 {[%clk 0:00:04]} 44. Qxf7+ {[%clk 0:00:25]}  Kh8 {[%clk 0:00:05]} 45. Re7 {[%clk 0:00:24]} 1-0


[Site "https://www.chess.com"]

[Event "Titled Tuesday Blitz February 14 Early 2023"]
[White "Boder, Jan"]
[Black "Barp, Alberto"]
[WhiteFideId "16243226"]
[BlackFideId "872555"]
[WhiteElo "2294"]
[BlackElo "2432"]
[Result "0-1"]
[Round "01"]
[TimeControl "180+2"]
[Date "2023.02.15"]
[WhiteClock "0:00:01"]
[BlackClock "0:00:05"]

1. c4 {[%clk 0:02:59]}  Nf6 {[%clk 0:02:55]} 2. g3 {[%clk 0:02:56]}  e5 {[%clk 0:02:55]} 3. Bg2 {[%clk 0:02:55]}  Bc5 {[%clk 0:02:51]} 4. Nc3 {[%clk 0:02:55]}  c6 {[%clk 0:02:51]} 5. e3 {[%clk 0:02:53]}  O-O {[%clk 0:02:50]} 6. Nge2 {[%clk 0:02:51]}  d6 {[%clk 0:02:51]} 7. O-O {[%clk 0:02:50]}  Bb6 {[%clk 0:02:48]} 8. d4 {[%clk 0:02:50]}  Re8 {[%clk 0:02:48]} 9. b4 {[%clk 0:02:42]}  a5 {[%clk 0:02:45]} 10. b5 {[%clk 0:02:41]}  Be6 {[%clk 0:02:38]} 11. Qa4 {[%clk 0:02:14]}  exd4 {[%clk 0:02:21]} 12. exd4 {[%clk 0:02:03]}  h6 {[%clk 0:02:16]} 13. h3 {[%clk 0:01:38]}  Bf5 {[%clk 0:02:09]} 14. Be3 {[%clk 0:01:37]}  Ne4 {[%clk 0:01:59]} 15. Rad1 {[%clk 0:01:23]}  Nxc3 {[%clk 0:01:55]} 16. Nxc3 {[%clk 0:01:23]}  Qc8 {[%clk 0:01:51]} 17. Kh2 {[%clk 0:01:22]}  Bd7 {[%clk 0:01:42]} 18. c5 {[%clk 0:00:58]}  dxc5 {[%clk 0:01:39]} 19. dxc5 {[%clk 0:00:58]}  cxb5 {[%clk 0:01:38]} 20. Nxb5 {[%clk 0:00:52]}  Bxc5 {[%clk 0:01:38]} 21. Rc1 {[%clk 0:00:52]}  Na6 {[%clk 0:01:14]} 22. Qxa5 {[%clk 0:00:52]}  Nb4 {[%clk 0:00:48]} 23. Na7 {[%clk 0:00:36]}  b6 {[%clk 0:00:11]} 24. Nxc8 {[%clk 0:00:11]}  Rxa5 {[%clk 0:00:10]} 25. Nxb6 {[%clk 0:00:12]}  Bxe3 {[%clk 0:00:11]} 26. fxe3 {[%clk 0:00:11]}  Be6 {[%clk 0:00:11]} 27. a3 {[%clk 0:00:11]}  Rxa3 {[%clk 0:00:11]} 28. Nc4 {[%clk 0:00:11]}  Ra2 {[%clk 0:00:10]} 29. Kg1 {[%clk 0:00:10]}  Nd3 {[%clk 0:00:09]} 30. Rc3 {[%clk 0:00:10]}  Rc8 {[%clk 0:00:07]} 31. Rxd3 {[%clk 0:00:08]}  Rxc4 {[%clk 0:00:06]} 32. Rd8+ {[%clk 0:00:06]}  Kh7 {[%clk 0:00:06]} 33. Rdd1 {[%clk 0:00:01]}  g5 {[%clk 0:00:06]} 34. Rc1 {[%clk 0:00:01]}  Rca4 {[%clk 0:00:05]} 0-1


[Site "https://www.chess.com"]

[Event "Titled Tuesday Blitz February 14 Early 2023"]
[White "Titichoca Daza, Daniel"]
[Black "Ajay, Karthikeyan"]
[WhiteFideId "3309550"]
[BlackFideId "35011685"]
[WhiteElo "2180"]
[BlackElo "2454"]
[Result "1-0"]
[Round "01"]
[TimeControl "180+2"]
[Date "2023.02.15"]
[WhiteClock "0:00:20"]
[BlackClock "0:00:01"]

1. e4 {[%clk 0:02:58]}  e5 {[%clk 0:02:59]} 2. Nf3 {[%clk 0:02:58]}  Nc6 {[%clk 0:02:59]} 3. Bb5 {[%clk 0:02:58]}  a6 {[%clk 0:03:00]} 4. Ba4 {[%clk 0:02:58]}  Nf6 {[%clk 0:03:00]} 5. O-O {[%clk 0:02:55]}  Bc5 {[%clk 0:03:00]} 6. Nc3 {[%clk 0:02:47]}  b5 {[%clk 0:02:58]} 7. Bb3 {[%clk 0:02:46]}  d6 {[%clk 0:02:59]} 8. Nd5 {[%clk 0:02:41]}  Rb8 {[%clk 0:02:43]} 9. a4 {[%clk 0:02:40]}  h6 {[%clk 0:02:39]} 10. c3 {[%clk 0:02:36]}  Nxd5 {[%clk 0:02:01]} 11. Bxd5 {[%clk 0:02:31]}  Ne7 {[%clk 0:01:53]} 12. Ba2 {[%clk 0:02:30]}  Bb6 {[%clk 0:01:41]} 13. d4 {[%clk 0:02:29]}  exd4 {[%clk 0:01:29]} 14. cxd4 {[%clk 0:02:29]}  Bg4 {[%clk 0:01:15]} 15. axb5 {[%clk 0:02:14]}  axb5 {[%clk 0:01:14]} 16. Be3 {[%clk 0:01:58]}  d5 {[%clk 0:01:03]} 17. exd5 {[%clk 0:01:54]}  O-O {[%clk 0:00:57]} 18. h3 {[%clk 0:01:52]}  Bxf3 {[%clk 0:00:43]} 19. Qxf3 {[%clk 0:01:53]}  Qd7 {[%clk 0:00:43]} 20. Bb1 {[%clk 0:01:05]}  Qxd5 {[%clk 0:00:37]} 21. Be4 {[%clk 0:01:03]}  Qd6 {[%clk 0:00:33]} 22. Rfd1 {[%clk 0:00:55]}  f5 {[%clk 0:00:33]} 23. Bc2 {[%clk 0:00:54]}  Kh8 {[%clk 0:00:28]} 24. Bb3 {[%clk 0:00:51]}  f4 {[%clk 0:00:24]} 25. Bd2 {[%clk 0:00:50]}  c6 {[%clk 0:00:24]} 26. Ra6 {[%clk 0:00:43]}  Nd5 {[%clk 0:00:23]} 27. Bc3 {[%clk 0:00:36]}  Ra8 {[%clk 0:00:17]} 28. Rda1 {[%clk 0:00:33]}  Rxa6 {[%clk 0:00:17]} 29. Rxa6 {[%clk 0:00:33]}  b4 {[%clk 0:00:14]} 30. Bd2 {[%clk 0:00:21]}  Bxd4 {[%clk 0:00:14]} 31. Qd3 {[%clk 0:00:19]}  Bxb2 {[%clk 0:00:10]} 32. Bc2 {[%clk 0:00:20]}  Kg8 {[%clk 0:00:06]} 33. Ra7 {[%clk 0:00:19]}  Rd8 {[%clk 0:00:03]} 34. Qh7+ {[%clk 0:00:19]}  Kf8 {[%clk 0:00:02]} 35. Bg6 {[%clk 0:00:19]}  Nf6 {[%clk 0:00:02]} 36. Rf7+ {[%clk 0:00:19]}  Ke8 {[%clk 0:00:02]} 37. Qh8+ {[%clk 0:00:20]}  Qf8 {[%clk 0:00:01]} 38. Qxf8# {[%clk 0:00:20]} 1-0


[Site "https://www.chess.com"]

[Event "Titled Tuesday Blitz February 14 Early 2023"]
[White "Kanyamarala, Trisha"]
[Black "Zahid, Sanatan"]
[WhiteFideId "45004722"]
[BlackFideId "10201963"]
[WhiteElo "2278"]
[BlackElo "1930"]
[Result "0-1"]
[Round "01"]
[TimeControl "180+2"]
[Date "2023.02.15"]
[WhiteClock "0:00:06"]
[BlackClock "0:00:39"]

1. c4 {[%clk 0:03:00]}  Nf6 {[%clk 0:02:59]} 2. Nc3 {[%clk 0:03:00]}  e5 {[%clk 0:02:58]} 3. d3 {[%clk 0:03:00]}  g6 {[%clk 0:02:58]} 4. Nf3 {[%clk 0:03:00]}  d6 {[%clk 0:02:57]} 5. g3 {[%clk 0:02:59]}  Bg7 {[%clk 0:02:57]} 6. Bg2 {[%clk 0:02:59]}  O-O {[%clk 0:02:58]} 7. O-O {[%clk 0:02:56]}  c6 {[%clk 0:02:56]} 8. Bg5 {[%clk 0:02:51]}  h6 {[%clk 0:02:56]} 9. Bxf6 {[%clk 0:02:51]}  Bxf6 {[%clk 0:02:56]} 10. Qd2 {[%clk 0:02:51]}  Bg7 {[%clk 0:02:56]} 11. d4 {[%clk 0:02:49]}  exd4 {[%clk 0:02:54]} 12. Nxd4 {[%clk 0:02:49]}  Nd7 {[%clk 0:02:54]} 13. Rad1 {[%clk 0:02:47]}  Ne5 {[%clk 0:02:53]} 14. b3 {[%clk 0:02:46]}  Qe7 {[%clk 0:02:53]} 15. Nc2 {[%clk 0:02:38]}  Rd8 {[%clk 0:02:52]} 16. e4 {[%clk 0:02:15]}  Nd7 {[%clk 0:02:37]} 17. Ne2 {[%clk 0:02:02]}  Nc5 {[%clk 0:02:33]} 18. Qe3 {[%clk 0:02:01]}  Re8 {[%clk 0:02:25]} 19. Rfe1 {[%clk 0:01:49]}  a5 {[%clk 0:02:21]} 20. Nc1 {[%clk 0:01:40]}  Be6 {[%clk 0:02:05]} 21. Nd3 {[%clk 0:01:27]}  Nxd3 {[%clk 0:01:53]} 22. Qxd3 {[%clk 0:01:26]}  Rad8 {[%clk 0:01:53]} 23. Qe3 {[%clk 0:01:25]}  Qc7 {[%clk 0:01:45]} 24. Nd4 {[%clk 0:01:22]}  Bc8 {[%clk 0:01:42]} 25. Ne2 {[%clk 0:01:10]}  a4 {[%clk 0:01:41]} 26. Qc1 {[%clk 0:01:03]}  axb3 {[%clk 0:01:35]} 27. axb3 {[%clk 0:01:03]}  Qa5 {[%clk 0:01:35]} 28. Rd3 {[%clk 0:00:58]}  Qb4 {[%clk 0:01:12]} 29. Red1 {[%clk 0:00:56]}  Bf8 {[%clk 0:01:04]} 30. e5 {[%clk 0:00:46]}  Rxe5 {[%clk 0:01:00]} 31. Nd4 {[%clk 0:00:36]}  Rde8 {[%clk 0:00:59]} 32. Nf3 {[%clk 0:00:34]}  Ra5 {[%clk 0:00:52]} 33. h3 {[%clk 0:00:28]}  Ra2 {[%clk 0:00:50]} 34. Nd2 {[%clk 0:00:20]}  Bf5 {[%clk 0:00:48]} 35. Rd4 {[%clk 0:00:17]}  Bg7 {[%clk 0:00:48]} 36. Rh4 {[%clk 0:00:11]}  Re2 {[%clk 0:00:47]} 37. Ne4 {[%clk 0:00:10]}  Bxe4 {[%clk 0:00:41]} 38. Rxe4 {[%clk 0:00:11]}  Rxf2 {[%clk 0:00:41]} 39. Bf1 {[%clk 0:00:08]}  Rf3 {[%clk 0:00:37]} 40. Re3 {[%clk 0:00:07]}  Qc5 {[%clk 0:00:37]} 41. Re1 {[%clk 0:00:07]}  Rxe3 {[%clk 0:00:38]} 42. Rxe3 {[%clk 0:00:06]}  Bd4 {[%clk 0:00:39]} 0-1


[Site "https://www.chess.com"]

[Event "Titled Tuesday Blitz February 14 Early 2023"]
[White "Mahdavi, Reza"]
[Black "Sawyer, Bradley"]
[WhiteFideId "12595926"]
[BlackFideId "2023784"]
[WhiteElo "2339"]
[BlackElo "2172"]
[Result "1-0"]
[Round "01"]
[TimeControl "180+2"]
[Date "2023.02.15"]
[WhiteClock "0:00:43"]
[BlackClock "0:00:08"]

1. e4 {[%clk 0:02:55]}  e5 {[%clk 0:02:57]} 2. Nf3 {[%clk 0:02:55]}  Nc6 {[%clk 0:02:57]} 3. Nc3 {[%clk 0:02:56]}  Nf6 {[%clk 0:02:57]} 4. g3 {[%clk 0:02:55]}  d5 {[%clk 0:02:48]} 5. exd5 {[%clk 0:02:54]}  Nxd5 {[%clk 0:02:49]} 6. Bg2 {[%clk 0:02:55]}  Bc5 {[%clk 0:02:44]} 7. O-O {[%clk 0:02:48]}  O-O {[%clk 0:02:38]} 8. Re1 {[%clk 0:02:48]}  Nxc3 {[%clk 0:02:32]} 9. bxc3 {[%clk 0:02:48]}  f6 {[%clk 0:02:29]} 10. d3 {[%clk 0:02:40]}  Bg4 {[%clk 0:02:21]} 11. h3 {[%clk 0:02:40]}  Bh5 {[%clk 0:02:21]} 12. Rb1 {[%clk 0:02:41]}  Bb6 {[%clk 0:02:21]} 13. a4 {[%clk 0:02:42]}  Qd7 {[%clk 0:02:09]} 14. g4 {[%clk 0:02:38]}  Bf7 {[%clk 0:02:07]} 15. Nh4 {[%clk 0:02:38]}  Rad8 {[%clk 0:01:54]} 16. Nf5 {[%clk 0:02:30]}  Be6 {[%clk 0:01:34]} 17. Be4 {[%clk 0:02:26]}  g6 {[%clk 0:01:30]} 18. Nh6+ {[%clk 0:02:16]}  Kh8 {[%clk 0:01:25]} 19. Qf3 {[%clk 0:02:17]}  f5 {[%clk 0:01:14]} 20. gxf5 {[%clk 0:02:09]}  gxf5 {[%clk 0:01:14]} 21. Bxc6 {[%clk 0:02:06]}  bxc6 {[%clk 0:01:15]} 22. Rxe5 {[%clk 0:02:01]}  Bd5 {[%clk 0:01:08]} 23. Qh5 {[%clk 0:01:46]}  Qg7+ {[%clk 0:01:02]} 24. Qg5 {[%clk 0:01:20]}  Qxe5 {[%clk 0:00:58]} 25. Bf4 {[%clk 0:01:20]}  Qe2 {[%clk 0:00:35]} 26. Bg3 {[%clk 0:01:10]}  f4 {[%clk 0:00:28]} 27. Nf5 {[%clk 0:00:59]}  Bxf2+ {[%clk 0:00:17]} 28. Bxf2 {[%clk 0:00:54]}  Rg8 {[%clk 0:00:17]} 29. h4 {[%clk 0:00:52]}  Rxg5+ {[%clk 0:00:15]} 30. hxg5 {[%clk 0:00:52]}  Qg4+ {[%clk 0:00:15]} 31. Kf1 {[%clk 0:00:51]}  Re8 {[%clk 0:00:14]} 32. Bd4+ {[%clk 0:00:44]}  Kg8 {[%clk 0:00:10]} 33. Nh6+ {[%clk 0:00:45]}  Kf8 {[%clk 0:00:09]} 34. Nxg4 {[%clk 0:00:46]}  Bf3 {[%clk 0:00:08]} 35. Ne5 {[%clk 0:00:43]} 1-0


[Site "https://www.chess.com"]